[Event "SixDays Budapest GM-A May 2024"]
[Site "Budapest"]
[Date "2024.05.17"]
[Round "2.5"]
[White "Nagy, Gabor"]
[Black "Sahib Singh"]
[Result "1-0"]
[ECO "D12"]
[WhiteElo "2433"]
[BlackElo "2291"]
[Annotator "RC"]
[PlyCount "137"]
[EventDate "2024.05.15"]
[EventType "tourn"]
[EventCountry "HUN"]
[SourceTitle "playchess.com"]
[Source "ChessBase"]
[SourceQuality "1"]
[TimeControl "40/5400+30:1800+30"]

1. d4 {[%emt 0:00:15]} d5 {[%emt 0:00:30]} 2. c4 {[%emt 0:00:46]} c6 {[%emt 0:00:03]} 3. Nf3 {[%emt 0:00:37]} Nf6 {[%emt 0:00:02]} 4. e3 {[%emt 0:02:24]} Bf5 {[%emt 0:00:13]} 5. Nc3 {[%emt 0:01:40]} e6 {[%emt 0:00:14]} 6. Nh4 {[%emt 0:01:06]} Bg4 {[%emt 0:07:40]} 7. Qb3 {[%emt 0:01:58]} Qb6 {[%emt 0:03:39]} 8. h3 {[%emt 0:01:15]} Bh5 {[%emt 0:02:10]} 9. g4 {[%emt 0:00:56]} Bg6 {[%emt 0:00:22]} 10. Nxg6 {[%emt 0:02:46]} hxg6 {[%emt 0:00:04]} 11. g5 {[%emt 0:02:07]} Qxb3 {[%emt 0:11:27]} 12. axb3 {[%emt 0:00:16]} Ne4 {[%emt 0:00:19]} 13. Nxe4 {[%emt 0:04:20]} dxe4 {[%emt 0:00:02]} 14. Rg1 {[%emt 0:02:22]} Rh4 {[%emt 0:00:05]} 15. c5 {[%emt 0:00:48]} Nd7 {[%emt 0:02:52]} 16. b4 {[%emt 0:00:40]} b5 {[%emt 0:01:00]} 17. Rg4 {[%emt 0:03:48]} Rxg4 {[%emt 0:02:23]} 18. hxg4 {[%emt 0:00:44]} f5 {[%emt 0:14:24]} 19. gxf6 {[%emt 0:00:23]} gxf6 {[%emt 0:00:50]} 20. Bg2 {[%emt 0:00:46]} f5 {[%emt 0:00:05]} 21. gxf5 {[%emt 0:00:22]} gxf5 {[%emt 0:04:57]} 22. f3 {[%emt 0:00:26]} Nf6 {[%emt 0:00:27]} 23. fxe4 {[%emt 0:04:27]} Nxe4 {[%emt 0:07:42]} 24. Ke2 {[%emt 0:02:49]} Kd7 {[%emt 0:00:10]} 25. Bd2 {[%emt 0:02:01]} Nxd2 {[%emt 0:00:48]} 26. Kxd2 {[%emt 0:00:11]} a6 {[%emt 0:01:08]} 27. Rh1 {[%emt 0:00:28]} Re8 {[%emt 0:08:16]} 28. Rh8 {[%emt 0:05:40]} Rc8 {[%emt 0:00:54]} 29. Kd3 {[%emt 0:00:22]} Re8 {[%emt 0:02:25]} 30. Bf3 {[%emt 0:00:48]} Rc8 {[%emt 0:00:20]} 31. Ke2 {[%emt 0:03:39]} Re8 {[%emt 0:00:23]} 32. Kf2 {[%emt 0:00:32]} Rc8 {[%emt 0:00:04]} 33. b3 {[%emt 0:02:41]} Re8 {[%emt 0:00:56]} 34. Kg2 {[%emt 0:00:21]} Rc8 {[%emt 0:00:11]} 35. Rh7+ {[%emt 0:00:39]} Kd8 {[%emt 0:11:51]} 36. Ra7 {[%emt 0:03:06]} Bh6 {[%emt 0:01:21]} 37. Kf2 {[%emt 0:00:13]} Bg5 {[%emt 0:02:59]} 38. Rxa6 {[%emt 0:00:48]} Kd7 {[%emt 0:00:04]} 39. Ra7+ {[%emt 0:00:45]} Rc7 {[%emt 0:00:04]} 40. Ra8 {[%emt 0:00:11]} Bd8 {[%emt 0:03:39]} 41. Ke2 {[%emt 0:30:31]} Ke7 {[%emt 0:32:20]} 42. Bg2 {[%emt 0:02:48]} Kd7 {[%emt 0:00:16]} 43. Kd3 {[%emt 0:03:25]} Ke7 {[%emt 0:00:39]} 44. Bh1 {[%emt 0:00:48]} Kd7 {[%emt 0:00:08]} 45. Bf3 {[%emt 0:00:05]} Bh4 {[%emt 0:01:32]} 46. Ke2 {[%emt 0:00:54]} Bd8 {[%emt 0:00:04]} 47. Bh5 {[%emt 0:00:08]} Bf6 {[%emt 0:03:16]} 48. Rf8 {[%emt 0:00:17]} Bg7 {[%emt 0:00:38]} 49. Rg8 {[%emt 0:05:19]} Bf6 {[%emt 0:00:10]} 50. Rg6 {[%emt 0:03:09]} Ke7 {[%emt 0:00:25]} 51. Bf3 {[%emt 0:00:10]} Rc8 {[%emt 0:03:47]} 52. Rh6 {[%emt 0:00:16]} Bg7 {[%emt 0:00:04]} 53. Rh7 {[%emt 0:00:14]} Kf8 {[%emt 0:01:11]} 54. Kd3 {[%emt 0:00:54]} Kg8 {[%emt 0:01:03]} 55. Rh2 {[%emt 0:00:31]} f4 {[%emt 0:03:00]} 56. Bg4 {[%emt 0:04:30]} Rd8 {[%emt 0:01:16]} 57. Bxe6+ {[%emt 0:00:15]} Kf8 {[%emt 0:00:03]} 58. d5 {[%emt 0:01:00]} fxe3 {[%emt 0:00:55]} 59. d6 {[%emt 0:00:13]} Re8 {[%emt 0:00:18]} 60. Bd7 {[%emt 0:01:04]} e2 {[%emt 0:00:11]} 61. Rf2+ {[%emt 0:00:47]} Bf6 {[%emt 0:00:15]} 62. Rxe2 {[%emt 0:00:37]} Rxe2 {[%emt 0:00:04]} 63. Kxe2 {[%emt 0:00:08]} Bc3 {[%emt 0:00:02]} 64. Kd3 {[%emt 0:00:08]} Bxb4 {[%emt 0:00:11]} 65. Kd4 {[%emt 0:00:05]} Kf7 {[%emt 0:01:41]} 66. Bxc6 {[%emt 0:00:06]} Ke6 {[%emt 0:00:02]} 67. Bxb5 {[%emt 0:00:14]} Ba3 {[%emt 0:00:38]} 68. Bc4+ {[%emt 0:00:06]} Kd7 {[%emt 0:00:16]} 69. Ke4 1-0

[Event "SixDays Budapest GM-A May 2024"]
[Site "Budapest"]
[Date "2024.05.17"]
[Round "3.1"]
[White "Sahib Singh"]
[Black "Ramoutar, Alan-Safar"]
[Result "0-1"]
[ECO "B12"]
[WhiteElo "2291"]
[BlackElo "2360"]
[Annotator "TA"]
[PlyCount "94"]
[EventDate "2024.05.15"]
[EventType "tourn"]
[EventCountry "HUN"]
[SourceTitle "playchess.com"]
[Source "ChessBase"]
[SourceQuality "1"]
[TimeControl "40/5400+30:1800+30"]

{[%evp 9,94,0,0,0,3,-10,-5,-3,29,20,35,0,22,0,10,0,0,0,37,32,34,33,52,-33,-33,-152,-154,-170,-156,-169,-106,-115,-51,-84,-60,-58,-62,-63,-70,-327,-327,-328,-327,-307,-316,-432,-443,-452,-445,-432,-431,-860,-833,-813,-386,-366,0,-831,-803,-842,-828,-752,-635,-826,-826,-781,-802,-761,-607,-768,-762,-1007,-1006,-999,-997,-1266,-1246,-1087,-989,-4875,-4875,-1795,-6640,-29972,-29973,-5852,-5074]} 1. e4 {[%emt 0:00:03]} c6 {[%emt 0:00:14]} 2. d4 {[%emt 0:00:24]} d5 {[%emt 0:00:22]} 3. e5 {[%emt 0:00:09]} c5 {[%emt 0:00:26]} 4. dxc5 {[%emt 0:01:12]} e6 {[%emt 0:00:25]} 5. a3 {[%emt 0:00:07]} Bxc5 {[%emt 0:00:37]} 6. b4 {[%emt 0:00:08]} Be7 {[%emt 0:00:29]} 7. Qg4 {[%emt 0:03:43]} g6 {[%emt 0:01:03]} 8. Nf3 {[%emt 0:01:05] The position is equal.} h5 {[%emt 0:02:48]} 9. Qf4 {[%emt 0:00:21]} a5 {[%emt 0:00:25]} 10. b5 {[%emt 0:01:22]} Nd7 {[%emt 0:02:20]} 11. Bd3 {[%emt 0:02:06]} Nh6 {[%emt 0:07:15]} 12. O-O {[%emt 0:02:33]} Nc5 {[%emt 0:06:59]} 13. a4 {[%emt 0:06:05]} Nf5 {[%emt 0:03:04]} 14. Bxf5 {[%emt 0:07:58]} gxf5 {[%emt 0:06:01]} 15. c4 {[%emt 0:09:35]} dxc4 {[%emt 0:09:44]} 16. Qxc4 {[%emt 0:00:44]} ({White should play} 16. Nbd2 $14 c3 17. Nc4) 16... b6 $15 {[%emt 0:06:50]} 17. Nbd2 {[%emt 0:02:59]} (17. Be3 $15) 17... Bb7 $17 {[%emt 0:00:50]} 18. Qe2 {[%emt 0:00:33]} Rg8 {[%emt 0:08:06]} 19. Ra3 {[%emt 0:05:09] Repels Nd3} Qc7 {[%emt 0:08:48]} (19... Qd5 $19 {Strongly threatening ...Rd8.} 20. Nc4 Qe4 21. Qxe4 Nxe4 22. Nxb6 Rd8) 20. Rc3 {[%emt 0:04:36] [#]} Rd8 {[%emt 0:01:32]} (20... Qd7 $1 $17 21. Ba3 Nxa4) 21. Nb3 {[%emt 0:03:42]} Be4 {[%emt 0:10:27] Black has more active pieces.} 22. Nxc5 {[%emt 0:11:01]} Bxc5 {[%emt 0:00:07] This pair of bishops is nice.} 23. Ng5 {[%emt 0:00:12]} Qxe5 {[%emt 0:04:17]} 24. Qxh5 $2 {[%emt 0:04:28][%mdl 8192] White is now going downhill.} Rxg5 $19 {[%emt 0:04:41]} ({Not} 24... Qxc3 25. Qxf7#) 25. Bxg5 {[%emt 0:00:06]} Qxc3 {[%emt 0:00:13]} 26. Bxd8 {[%emt 0:00:13]} Kxd8 {[%emt 0:00:10]} 27. Rd1+ {[%emt 0:03:19]} Ke8 {[%emt 0:03:42]} 28. Qg5 {[%emt 0:01:15]} Bd5 {[%emt 0:01:00]} 29. Qg8+ {[%emt 0:05:09]} Ke7 {[%emt 0:00:16]} 30. h4 {[%emt 0:07:34]} (30. Qg5+ $142 Qf6 31. Qxf6+ Kxf6 32. g3) 30... Qc2 {[%emt 0:01:51][%csl LRa4,LRd1,LRf2]} 31. Qg5+ {[%emt 0:00:05]} Ke8 {[%emt 0:01:01]} (31... Kd7 $142 32. Rf1 Bc4 (32... Qxa4 $2 33. h5 $19)) 32. Qg8+ {[%emt 0:00:27]} Ke7 $2 {[%emt 0:00:07]} (32... Bf8 33. Ra1 Qd2) 33. Qg5+ {[%emt 0:00:03]} Kd7 {[%emt 0:00:27]} 34. Rf1 {[%emt 0:03:03]} Bc4 {[%emt 0:01:35]} 35. Qc1 {[%emt 0:01:26] [#]} Bxf2+ $1 {[%emt 0:00:46][%mdl 512]} 36. Kh1 {[%emt 0:00:09]} (36. Kh2 Qxc1) 36... Qxc1 37. Rxc1 {[%emt 0:00:05]} Bd5 {[%emt 0:04:47]} 38. h5 {[%emt 0:00:08]} Be3 {[%emt 0:00:13]} 39. Rc3 {[%emt 0:00:21]} f4 {[%emt 0:00:50] Hoping for ...Ke7.} 40. Kh2 {[%emt 0:01:12]} Ke7 {[%emt 0:00:41]} 41. Rc8 {[%emt 0:33:09]} Kf6 {[%emt 0:30:44]} 42. Rg8 {[%emt 0:00:11]} f3 {[%emt 0:00:57]} 43. gxf3 {[%emt 0:00:31]} Bxf3 {[%emt 0:00:16]} 44. Kh3 {[%emt 0:01:38]} Bxh5 {[%emt 0:00:22] aiming for ...Bd1.} 45. Rg3 {[%emt 0:00:04]} Bd4 {[%emt 0:00:29] ( -> ...e5)} 46. Kg2 {[%emt 0:00:56]} e5 {[%emt 0:00:13]} 47. Rh3 {[%emt 0:00:22]} Bd1 {[%emt 0:00:15] Weighted Error Value: White=0.61/Black=0.42.  Loses game:     	White=1     	---        Mistake:       	White=3     	Black=2      Inaccurate:     	White=3     	Black=2      OK:         	White=10    	Black=12     Best:        	White=2     	Black=4} 0-1

[Event "SixDays Budapest GM-A May 2024"]
[Site "Budapest"]
[Date "2024.05.17"]
[Round "3.2"]
[White "Sathvik Adiga"]
[Black "Nagy, Gabor"]
[Result "0-1"]
[ECO "C50"]
[WhiteElo "2398"]
[BlackElo "2433"]
[Annotator "TA"]
[PlyCount "94"]
[EventDate "2024.05.15"]
[EventType "tourn"]
[EventCountry "HUN"]
[SourceTitle "playchess.com"]
[Source "ChessBase"]
[SourceQuality "1"]
[TimeControl "40/5400+30:1800+30"]

{[%evp 10,94,13,14,11,4,7,12,24,18,18,25,13,0,0,0,11,0,0,0,0,-8,-11,-9,-10,-15,-8,-18,0,0,0,0,0,0,6,0,0,0,0,0,0,0,0,0,0,0,0,0,18,0,0,-108,-116,-110,-112,-220,-198,-281,-255,-464,-466,-489,-509,-743,-742,-861,-836,-1591,-1536,-2607,-1859,-5701,-5414,-29987,-29988,-29990,-29991,-29991,-29992,-29997,-29990,-29992,-29991,-29993,-29985,-29985,-29986]} 1. e4 {[%emt 0:00:02]} e5 {[%emt 0:00:41]} 2. Nf3 {[%emt 0:00:04]} Nc6 {[%emt 0:00:28]} 3. Bc4 {[%emt 0:00:03]} Nf6 {[%emt 0:00:21]} 4. d3 {[%emt 0:00:02]} Bc5 {[%emt 0:00:45]} 5. c3 {[%emt 0:00:03]} d6 {[%emt 0:00:47]} 6. O-O {[%emt 0:00:03]} a5 {[%emt 0:00:53]} 7. Nbd2 {[%emt 0:00:15]} O-O {[%emt 0:01:51]} 8. Re1 {[%emt 0:00:03]} Ba7 {[%emt 0:02:12] The position is equal.} 9. h3 {[%emt 0:00:07]} h6 {[%emt 0:01:55]} 10. Nf1 {[%emt 0:00:14]} Be6 {[%emt 0:00:32]} 11. Bb3 {[%emt 0:03:30]} Bxb3 {[%emt 0:05:15]} 12. Qxb3 {[%emt 0:02:21]} Qd7 {[%emt 0:01:41]} 13. a4 {[%emt 0:02:24]} Rfe8 {[%emt 0:00:24]} 14. Ne3 {[%emt 0:06:47]} Bxe3 {[%emt 0:00:38]} 15. Bxe3 {[%emt 0:00:06]} b6 {[%emt 0:01:00]} 16. Rad1 {[%emt 0:00:43]} Rad8 {[%emt 0:01:15]} 17. Bc1 {[%emt 0:16:41]} d5 {[%emt 0:00:39]} 18. Qc2 {[%emt 0:01:42]} dxe4 {[%emt 0:07:15]} 19. dxe4 {[%emt 0:01:11]} Qe6 {[%emt 0:00:28]} 20. b3 {[%emt 0:02:30]} Rxd1 {[%emt 0:04:36]} 21. Rxd1 {[%emt 0:00:09]} Rd8 {[%emt 0:00:11] Strongly threatening ...Rxd1+.} 22. Rxd8+ {[%emt 0:03:05]} Nxd8 {[%emt 0:00:09]} 23. Be3 {[%emt 0:00:56]} Qc6 {[%emt 0:00:50]} 24. Nd2 {[%emt 0:00:39]} Ne6 {[%emt 0:00:09]} 25. Qd3 {[%emt 0:09:22] Wards off Nd4} Kh7 {[%emt 0:00:49]} 26. f3 {[%emt 0:00:34]} Nd7 {[%emt 0:05:31]} 27. g3 {[%emt 0:04:43]} Kg8 {[%emt 0:04:31]} 28. Kf1 {[%emt 0:09:45]} Kf8 {[%emt 0:00:47]} 29. Nc4 {[%emt 0:07:33]} Ke7 {[%emt 0:02:17]} 30. h4 {[%emt 0:04:18] [#]} (30. Nd2 $11) 30... Nec5 $1 $17 {[%emt 0:02:43] Black converts the advantage convincingly.} 31. Bxc5+ {[%emt 0:00:19]} Nxc5 {[%emt 0:00:08][%mdl 4096] Endgame. KQN-KQN} ({But not} 31... Qxc5 $6 32. Ne3 $14) 32. Qe3 {[%emt 0:09:18] [#]} ({Much worse is} 32. Nxe5 Qe6 33. Qd5 Qxd5 (33... Nxb3 $2 {is the wrong capture.} 34. Nc6+ Kf8 35. Qd8+ Qe8 36. Qxc7 $18) 34. exd5 Nxb3 $19) (32. Qd1 $17 {was necessary.}) 32... Nxa4 $1 {[%emt 0:03:51][%cal Oc6b5][%mdl 512]} 33. Nxe5 {[%emt 0:01:20]} (33. Kf2 $142) (33. Qd2 Qb5) 33... Qxc3 $19 {[%emt 0:00:30]} 34. Qf4 {[%emt 0:02:28]} (34. Qxc3 Nxc3 35. Nd3) 34... Qxb3 {[%emt 0:01:14]} 35. Ng4 {[%emt 0:01:50]} Kd8 {[%emt 0:04:41]} 36. Kg2 {[%emt 0:04:02]} Nc5 {[%emt 0:02:23]} 37. Qf5 {[%emt 0:02:14]} a4 {[%emt 0:03:59] Hoping for ...a3.} 38. Qh7 {[%emt 0:01:08]} a3 {[%emt 0:00:38] Threatens to win with ...Qb2+.} 39. Qg8+ {[%emt 0:00:15]} Ke7 {[%emt 0:00:06] ...Ne6 would now be deadly.} 40. Kh3 {[%emt 0:00:27]} h5 {[%emt 0:00:35]} 41. Nf2 {[%emt 0:30:34]} Qxf3 {[%emt 0:30:34] Black mates.} 42. Qc8 {[%emt 0:00:26]} Ne6 {[%emt 0:00:37]} 43. Kh2 {[%emt 0:00:59]} Qxf2+ {[%emt 0:00:08]} 44. Kh3 {[%emt 0:00:04]} Qf1+ {[%emt 0:00:19]} 45. Kh2 {[%emt 0:00:05]} Qe2+ {[%emt 0:00:07]} 46. Kh3 {[%emt 0:00:10]} Nf4+ {[%emt 0:00:35]} 47. gxf4 {[%emt 0:00:05]} Qg4+ {[%emt 0:00:05] Weighted Error Value: White=0.92/Black=0.02 (flawless) .  Mistake:       	White=4     	---        Inaccurate:     	White=1     	---        OK:         	White=7     	Black=14     Best:        	---       	Black=2      Strong:       	---       	Black=1} 0-1

[Event "SixDays Budapest GM-A May 2024"]
[Site "Budapest"]
[Date "2024.05.17"]
[Round "3.3"]
[White "Wadsworth, Matthew J"]
[Black "Berczes, David"]
[Result "1/2-1/2"]
[ECO "A14"]
[WhiteElo "2470"]
[BlackElo "2425"]
[Annotator "TA"]
[PlyCount "109"]
[EventDate "2024.05.15"]
[EventType "tourn"]
[EventCountry "HUN"]
[SourceTitle "playchess.com"]
[Source "ChessBase"]
[SourceQuality "1"]
[TimeControl "40/5400+30:1800+30"]

{[%evp 20,109,29,11,13,25,26,15,19,4,37,39,50,37,40,-12,-13,0,-2,-11,-16,-3,-7,-14,-7,-23,11,0,0,-63,-49,-78,-79,-117,-102,-110,-66,-48,-68,-68,-65,-79,-68,-99,-94,-108,-55,-38,-50,-43,-22,-34,-20,-22,-8,-35,0,-170,-170,-244,-170,-262,0,0,0,0,0,0,0,0,0,0,0,0,0,0,0,0,0,0,0,0,0,0,0,0,0,0,0,0,0,0]} 1. c4 {[%emt 0:00:06]} e6 {[%emt 0:17:40]} 2. g3 {[%emt 0:00:09]} d5 {[%emt 0:00:27]} 3. Bg2 {[%emt 0:00:07]} Nf6 {[%emt 0:00:21]} 4. Nf3 {[%emt 0:00:08]} Be7 {[%emt 0:00:08]} 5. O-O {[%emt 0:00:18]} O-O {[%emt 0:00:17]} 6. d4 {[%emt 0:00:10]} c6 {[%emt 0:01:28]} 7. Nc3 {[%emt 0:00:13]} Nbd7 {[%emt 0:00:28]} 8. b3 {[%emt 0:00:35]} b6 {[%emt 0:00:19]} 9. Bb2 {[%emt 0:00:19]} Bb7 {[%emt 0:00:17]} 10. Qc2 {[%emt 0:02:45]} Qc7 {[%emt 0:09:28]} 11. Rfd1 {[%emt 0:02:04]} Rad8 {[%emt 0:05:44]} 12. Rac1 {[%emt 0:04:57]} Qb8 {[%emt 0:03:21]} 13. e3 {[%emt 0:10:00][%cal Be2e3,Be3e4][%mdl 32]} Rfe8 {[%emt 0:13:46]} 14. Ne1 {[%emt 0:02:12]} Rc8 {[%emt 0:05:29]} 15. e4 {[%emt 0:07:17]} dxc4 {[%emt 0:14:07]} 16. bxc4 {[%emt 0:01:22]} e5 {[%emt 0:00:08]} 17. d5 {[%emt 0:04:55]} (17. Ne2 $1 $14) 17... cxd5 $11 {[%emt 0:05:29]} 18. cxd5 {[%emt 0:02:48]} b5 {[%emt 0:05:04] ...b4 is the strong threat.} 19. Qe2 {[%emt 0:05:24]} Ba6 {[%emt 0:02:49]} 20. a4 {[%emt 0:07:25]} bxa4 {[%emt 0:01:46]} 21. Qxa6 {[%emt 0:00:08]} Qxb2 {[%emt 0:00:08]} 22. Nd3 {[%emt 0:01:01]} (22. Nxa4 $2 Qxc1 23. Rxc1 Rxc1 $19) 22... Qb6 {[%emt 0:03:03]} 23. Qxb6 {[%emt 0:09:17]} Nxb6 {[%emt 0:01:19]} 24. Bh3 {[%emt 0:01:29]} (24. Nxe5 $11 Ba3 25. Nc6 Bxc1 26. Rxc1) 24... Rc7 $15 {[%emt 0:03:08]} 25. f3 $1 {[%emt 0:00:54][%cal Oc3b5]} Ba3 $1 {[%emt 0:02:44]} 26. Nb5 {[%emt 0:00:33]} Rxc1 {[%emt 0:00:17]} 27. Nxc1 {[%emt 0:00:01]} Bc5+ {[%emt 0:00:14]} 28. Kh1 {[%emt 0:02:53][%cal Oc1d3]} Rb8 {[%emt 0:02:10] And now ...Nc4 would win.} 29. Nd3 $1 {[%emt 0:02:41]} Nbd7 {[%emt 0:00:17]} 30. Nxc5 $1 {[%emt 0:11:14]} Nxc5 {[%emt 0:00:02]} 31. Na3 {[%emt 0:00:13]} g5 {[%emt 0:01:35][%cal Og5g4]} 32. d6 {[%emt 0:09:40] [#]} g4 {[%emt 0:01:54]} 33. Bxg4 {[%emt 0:00:15]} Nxg4 34. fxg4 {[%emt 0:00:01]} Nxe4 {[%emt 0:00:20][%mdl 4096] Endgame. KRN-KRN} 35. Kg2 {[%emt 0:04:54] Prevents Nf2.} Rd8 {[%emt 0:01:36]} 36. Nc4 {[%emt 0:00:10] [#]} a3 $1 {[%emt 0:00:25] Strongly threatening ...a2.} 37. Kf3 {[%emt 0:01:38]} (37. Rd3 Nxd6) 37... Nxd6 {[%emt 0:00:40]} (37... Nc3 {is interesting.} 38. Ra1 a2 39. Ke3 f6) 38. Nxe5 {[%emt 0:01:13]} (38. Nxd6 $11 {and White is okay.} a2 39. Ra1) 38... Kg7 $19 {[%emt 0:00:31][%cal Od6c4]} 39. g5 {[%emt 0:02:04]} (39. Kf4 $142) 39... a5 {[%emt 0:00:29][%cal Od6c4] Threatens to win with ...Nc4!} 40. h4 {[%emt 0:02:53] [#]} (40. Rd4 {was worth a try.}) 40... Re8 $2 {[%emt 0:00:30]} ({Black should try} 40... Rb8 $1 $19 {[%cal Rb8b3] aiming for ...Rb3+.} 41. h5 (41. Rxd6 $2 {is the wrong capture.} a2 $19) 41... a2 42. h6+ Kg8) 41. Rxd6 $11 {[%emt 0:32:34] The position is equal.} Rxe5 {[%emt 0:30:05] KR-KR} (41... a2 $5 42. Rd1 $8 Rxe5 $15) 42. Rd3 {[%emt 0:00:32]} a4 {[%emt 0:00:47]} 43. Rxa3 {[%emt 0:00:28]} Ra5 {[%emt 0:00:04]} 44. Ke4 {[%emt 0:00:48]} f6 {[%emt 0:01:04]} 45. gxf6+ {[%emt 0:00:38]} Kxf6 {[%emt 0:00:01]} 46. g4 {[%emt 0:00:47]} Ke6 {[%emt 0:00:41]} 47. Kd4 {[%emt 0:00:42]} Ra8 {[%emt 0:00:26]} 48. Ke4 {[%emt 0:00:32]} Kd6 {[%emt 0:00:20]} 49. Kd4 {[%emt 0:00:24]} h6 {[%emt 0:01:01]} 50. Kc4 {[%emt 0:00:40]} Ke5 {[%emt 0:00:16]} 51. g5 {[%emt 0:00:07]} hxg5 {[%emt 0:00:23]} 52. hxg5 {[%emt 0:00:05]} Kf5 {[%emt 0:00:04]} 53. Kb4 {[%emt 0:00:04]} Kxg5 {[%emt 0:00:03]} 54. Rxa4 {[%emt 0:00:03]} Rxa4+ {[%emt 0:00:05]} 55. Kxa4 {[%emt 0:00:03] Weighted Error Value: White=0.19 (very precise) /Black=0.18 (very precise) .  Loses game:     	White=1     	---        Missed win:     	---       	Black=1      Mistake:       	White=4     	Black=1      Inaccurate:     	White=3     	Black=5      OK:         	White=15    	Black=17     Best:        	White=3     	Black=2      Strong:       	White=3     	Black=1} 1/2-1/2